bitfinex/quotes_ETHUSD_20241108
["timestamp","ask_amount","ask_price","bid_price","bid_amount"]
[1731063438411,0.4312,2926.4,2925.7,0.55]
[1731063439008,0.4312,2926.4,2925.4,0.8045]
[1731063439231,0.4312,2926.4,2925.4,0.46991269]
[1731063439412,0.4312,2926.4,2925.2,0.7694]
[1731063439611,0.4312,2926.4,2925.3,0.06834272]
[1731063440309,0.4312,2926.4,2925.4,0.43071554]
[1731063440894,0.4312,2927.1,2926.0,0.55]
[1731063441107,0.4312,2927.1,2926.3,0.55]
[1731063441305,0.4312,2927.1,2926.3,1.41120232]
[1731063441508,0.4312,2927.1,2926.5,0.55]
[1731063444427,0.4312,2927.1,2926.3,4.3323]
[1731063445696,0.4312,2927.1,2926.3,4.91061994]
[1731063448933,0.4312,2927.1,2926.3,3.55]
[1731063449101,0.4312,2927.1,2926.3,0.55]
[1731063449303,0.4312,2927.1,2926.0,3.0]
[1731063449528,0.4312,2927.1,2926.1,0.76552914]
[1731063450031,0.4312,2927.1,2926.1,1.34384908]
[1731063450241,0.4312,2927.1,2926.2,0.57831994]
[1731063450533,0.5673289,2927.4,2926.3,0.55]
[1731063450831,0.4312,2927.3,2926.3,0.55]
[1731063451002,0.4312,2927.3,2926.5,0.55]
[1731063451198,0.4312,2927.3,2926.1,0.76552914]
[1731063451421,0.4312,2927.3,2926.2,0.06833021]
[1731063452029,0.4312,2927.3,2926.2,0.57831994]
[1731063452198,0.4312,2927.3,2926.2,0.64665014]
[1731063452397,0.4312,2927.3,2926.3,0.55]
[1731063452598,0.4312,2927.3,2926.5,0.55]
[1731063452798,0.4312,2927.3,2926.6,0.06832323]
[1731063453242,0.4312,2927.3,2926.7,0.55]
[1731063453539,0.4312,2927.3,2926.9,0.55]
[1731063453828,0.4312,2927.3,2927.0,0.06831561]
[1731063454019,0.4312,2927.3,2927.1,0.55]
[1731063454600,0.4312,2927.3,2927.2,0.55]
[1731063456819,0.4312,2927.3,2926.6,0.55]
[1731063457039,0.4312,2927.3,2926.8,0.55]
[1731063458433,0.4312,2927.3,2926.7,0.38232715]
[1731063458615,0.4312,2927.3,2926.8,0.06831854]
[1731063459031,0.4312,2927.3,2926.7,0.5783181]
[1731063459227,0.4312,2927.3,2926.4,3.51772372]
[1731063459541,0.4312,2927.3,2926.5,0.64663703]
[1731063459905,0.1361289,2927.4,2926.6,1.3401]
[1731063460113,0.1361289,2927.4,2926.8,0.55]
[1731063460335,0.1361289,2927.4,2927.0,0.55]
[1731063460640,0.1361289,2927.4,2927.2,0.55]
[1731063461039,0.1361289,2927.4,2927.3,0.61830972]
[1731063461242,0.1361289,2927.4,2927.3,0.55]
[1731063461426,0.1361289,2927.4,2927.3,1.07182283]
[1731063463444,0.1361289,2927.4,2927.3,0.52182283]
[1731063463610,0.1361289,2927.4,2927.2,0.06829888]
[1731063463811,0.1361289,2927.4,2927.0,3.0]
[1731063464264,0.1361289,2927.4,2926.9,1.09604182]
[1731063464811,0.1361289,2927.4,2927.0,0.5783181]
[1731063465040,0.1361289,2927.4,2927.0,1.09604182]
[1731063465349,0.1361289,2927.4,2927.1,0.06831321]
[1731063465640,0.1361289,2927.4,2926.8,0.55]
[1731063465942,0.1361289,2927.4,2927.0,0.55]
[1731063466147,0.1361289,2927.4,2927.2,0.55]
[1731063466308,0.1361289,2927.4,2927.3,0.06831318]
[1731063466513,0.1361289,2927.4,2926.9,0.61831309]
[1731063466714,0.4312,2927.3,2926.9,0.58661819]
[1731063466907,0.4312,2927.3,2926.4,0.51240144]
[1731063467113,0.4312,2927.3,2926.5,3.06832196]
[1731063467327,0.4312,2927.3,2926.6,0.50185345]
[1731063468013,0.1361289,2927.4,2927.1,0.55]
[1731063468226,0.1361289,2927.4,2927.2,0.06830185]
[1731063468433,0.1361289,2927.4,2927.3,0.55]
[1731063468615,0.1361289,2927.4,2927.2,0.55]
[1731063468947,0.1361289,2927.4,2927.1,0.55]
[1731063469138,0.1361289,2927.4,2927.3,0.55]
[1731063470934,0.1361289,2927.4,2927.3,1.3831]
[1731063471132,0.1361289,2927.4,2927.3,4.65704335]
[1731063471375,0.35660998,2929.3,2928.2,0.55]
[1731063471528,0.51047559,2930.2,2929.3,4.3251]
[1731063471728,0.51047559,2930.2,2929.7,7.59904335]
[1731063471945,0.51047559,2930.2,2929.7,9.18440033]
[1731063472167,0.753,2929.9,2929.8,3.55]
[1731063472367,0.353,2929.9,2929.8,0.55]
[1731063473247,0.01,2931.8,2929.8,3.8009]
[1731063473465,0.7735,2931.7,2929.9,0.70748434]
[1731063473772,0.7635,2931.4,2929.9,0.70748434]
[1731063474361,0.7635,2931.4,2930.1,3.27394335]
[1731063475272,0.7635,2931.4,2930.2,0.55]
[1731063475599,0.7635,2931.4,2930.4,0.55]
[1731063475746,0.7635,2931.4,2930.5,0.06823385]
[1731063476275,0.7635,2931.4,2930.4,0.55]
[1731063476572,0.01,2931.6,2929.3,3.0]
[1731063476573,0.764,2931.0,2929.3,3.0]
[1731063476783,0.764,2931.0,2929.2,4.02017128]
[1731063476784,0.01,2930.9,2929.2,4.02017128]
[1731063477072,0.01,2930.9,2929.3,0.48520713]
[1731063477262,0.764,2930.8,2929.3,0.48520713]
[1731063477459,0.764,2930.7,2928.9,4.02017128]
[1731063478449,0.764,2930.7,2928.9,4.43231166]
[1731063478793,0.764,2930.7,2929.0,3.55]
[1731063479689,0.764,2930.7,2929.2,0.55]
[1731063480182,0.764,2930.7,2929.1,0.55]
[1731063480481,0.764,2930.7,2929.3,0.55]
[1731063480650,0.764,2930.7,2929.5,0.55]
[1731063480848,0.764,2930.7,2929.7,0.55]
[1731063481190,0.764,2930.7,2929.5,0.55]
[1731063485691,0.01,2930.4,2928.7,0.7915]
[1731063485989,0.01,2930.4,2928.3,4.81737128]
[1731063485990,0.02,2930.1,2928.3,4.81737128]
[1731063486164,0.8275,2930.0,2928.4,0.48173713]
[1731063486360,0.8275,2930.0,2928.5,0.06826969]
[1731063486569,0.8275,2930.0,2928.5,0.41214038]
[1731063486785,0.8275,2930.0,2928.4,0.48173713]
[1731063486976,0.8275,2930.0,2928.5,0.52991084]
[1731063487908,0.8275,2930.0,2928.6,0.55]
[1731063488690,0.8275,2930.0,2928.7,0.06826025]
[1731063488889,0.8275,2930.0,2928.8,0.55]
[1731063493593,0.8275,2930.0,2928.6,0.55]
[1731063494292,0.8275,2930.0,2928.5,0.52991084]
[1731063494492,0.8275,2930.0,2928.6,0.42125187]
[1731063494713,0.8275,2930.0,2928.6,0.35299108]
[1731063495008,0.8275,2930.0,2928.7,0.7823]
[1731063495172,0.8275,2930.0,2928.3,4.39147833]
[1731063495173,0.01,2928.2,2926.1,0.7823]
[1731063495370,0.02,2928.6,2926.2,3.27381796]
[1731063495581,0.302,2928.5,2926.6,3.27381796]
[1731063495756,3.27381796,2929.2,2927.5,0.3561187]
[1731063495757,0.02,2929.2,2927.5,0.3561187]
[1731063495964,0.02,2929.2,2927.5,3.27381796]
[1731063496164,0.7737,2929.1,2927.5,3.27381796]
[1731063496395,0.7737,2929.0,2927.4,0.35608577]
[1731063496564,0.7737,2929.0,2927.4,4.11482594]
[1731063496900,0.7837,2929.0,2927.4,4.11482594]
[1731063497098,0.7837,2929.0,2927.5,0.41148259]
[1731063497258,0.7837,2929.0,2927.4,0.35608577]
[1731063497460,0.7837,2929.0,2927.5,0.58242221]
[1731063497900,0.7937,2929.0,2927.5,0.58242221]
[1731063498076,0.7837,2929.0,2927.5,0.58242221]
[1731063498276,0.7837,2929.0,2927.4,0.35608577]
[1731063498798,0.7937,2929.0,2927.5,0.06829976]
[1731063499183,0.7837,2929.0,2927.5,0.55]
[1731063499377,0.7937,2929.0,2927.5,0.55]
[1731063500302,0.7937,2929.0,2927.7,0.55]
[1731063500464,0.7937,2929.0,2927.7,0.72088053]
[1731063501062,0.7816,2928.9,2927.6,0.06829956]
[1731063501366,0.7916,2928.8,2926.9,4.0271745]
[1731063501562,0.7816,2928.8,2927.1,0.35472742]
[1731063501806,0.7916,2928.8,2927.1,0.35472742]
[1731063502469,0.7916,2928.8,2927.2,0.55]
[1731063502790,0.7816,2928.8,2927.2,0.55]
[1731063504571,0.7816,2928.8,2927.4,3.55]
[1731063504766,0.7816,2928.8,2927.5,0.75771745]
[1731063505071,0.7816,2928.8,2927.6,0.55]
[1731063506801,0.7816,2928.8,2927.0,3.0]
[1731063506802,0.7816,2928.8,2927.4,0.55]
[1731063506989,0.7816,2928.8,2927.4,0.5404836]
[1731063507314,0.7816,2928.8,2927.5,0.55]
[1731063508215,0.7816,2928.8,2927.7,0.55]
[1731063508415,0.7816,2928.8,2927.8,0.06829817]
[1731063508916,0.7816,2928.8,2927.5,0.55]
[1731063509621,0.7816,2928.8,2927.5,0.61829819]
[1731063509982,0.7816,2928.8,2927.5,0.55]
[1731063510185,0.7916,2928.8,2927.5,0.55]
[1731063510420,0.7816,2928.8,2927.5,0.55]
[1731063510611,0.7816,2928.8,2927.3,0.55]
[1731063510807,0.7816,2928.8,2927.4,0.5404836]
[1731063511119,0.7816,2928.8,2927.5,0.55]
[1731063514591,0.8146,2928.7,2927.5,0.55]
[1731063514792,0.8146,2928.7,2927.6,0.55]
[1731063515108,0.8146,2928.7,2927.5,0.5404836]
[1731063515285,0.8146,2928.7,2927.1,0.35469562]
[1731063515699,0.8146,2928.7,2927.2,0.06829998]
[1731063515998,0.8146,2928.7,2927.1,0.35469562]
[1731063516195,0.8146,2928.7,2927.2,0.37724281]
[1731063516440,0.8146,2928.7,2927.3,0.55]
[1731063517120,0.8146,2928.7,2927.5,0.55]
[1731063517434,0.8146,2928.7,2927.7,0.55]
[1731063517637,0.8146,2928.7,2927.9,0.55]
[1731063517801,0.8146,2928.7,2928.0,0.06829091]
[1731063518444,0.8146,2928.7,2927.5,0.06829028]
[1731063518656,0.8146,2928.7,2927.4,0.41773249]
[1731063518800,0.8146,2928.7,2927.5,0.34177325]
[1731063519404,0.8146,2928.7,2927.6,0.06828878]
[1731063519601,0.8146,2928.7,2927.5,0.34177325]
[1731063520550,0.8146,2928.7,2927.6,0.55]
[1731063522754,3.27125665,2928.7,2927.5,0.34177325]
[1731063522905,0.7591,2928.6,2927.2,0.35470415]
[1731063524018,0.7591,2928.6,2927.3,0.55]
[1731063524758,0.7619,2928.3,2927.2,0.35470415]
[1731063525071,0.7619,2928.2,2927.2,0.35470415]
[1731063526070,0.7619,2928.2,2927.3,0.55]
[1731063526414,0.7619,2928.2,2927.2,0.35470415]
[1731063527157,0.7619,2928.2,2926.6,0.762]
[1731063527315,0.7619,2928.2,2927.0,0.35485646]
[1731063527656,0.7619,2928.2,2926.8,3.0]
[1731063527862,0.7619,2928.2,2926.9,0.62712567]
[1731063528047,0.7619,2928.2,2927.0,0.35479685]
[1731063528359,0.7619,2928.2,2927.1,0.55]
[1731063533423,0.7619,2928.2,2927.3,0.55]
[1731063533654,0.7619,2928.2,2927.1,0.55]
[1731063534058,0.7619,2928.2,2927.3,0.55]
[1731063534222,0.7619,2928.2,2927.1,0.55]
[1731063535866,3.27125665,2928.2,2927.0,0.35479685]
[1731063536019,0.7976,2928.0,2927.0,0.35479685]
[1731063536219,0.7976,2928.0,2926.5,0.49901469]
[1731063536463,0.7976,2928.0,2926.5,0.35485588]
[1731063536664,0.7976,2928.0,2926.5,0.4231747]
[1731063537264,0.7976,2928.0,2926.5,0.35485588]
[1731063537559,0.7512,2927.9,2926.5,0.35485588]
[1731063537755,0.7512,2927.9,2926.6,0.55]
[1731063537936,0.7512,2927.9,2926.7,0.06831606]
[1731063538144,0.7512,2927.9,2926.6,0.55]
[1731063538573,0.8077,2927.8,2926.5,0.35485588]
[1731063539045,0.8077,2927.7,2926.5,0.35485588]
[1731063540067,3.27125665,2927.6,2926.5,0.35485588]
[1731063540266,0.8171,2927.5,2925.7,0.8319]
[1731063540563,0.8171,2927.5,2926.0,0.3547107]
[1731063540775,0.8171,2927.5,2926.0,0.74577653]
[1731063541555,0.8171,2927.5,2926.1,0.55]
[1731063541744,0.8171,2927.5,2926.3,0.55]
[1731063544730,0.8171,2927.5,2926.2,0.42957765]
[1731063545682,0.8171,2927.5,2926.3,0.06833023]
[1731063545986,0.8171,2927.5,2926.2,0.42957765]
[1731063546150,0.8171,2927.5,2926.3,0.55]
[1731063547396,0.7752,2927.3,2926.1,0.55]
[1731063547557,0.7752,2927.3,2926.0,0.3547107]
[1731063547891,0.7627,2927.2,2925.5,3.27125665]
[1731063548051,0.7627,2927.2,2925.6,0.35468085]
[1731063548253,0.7627,2927.2,2925.7,0.402117]
[1731063549074,0.7627,2927.2,2925.8,0.55]
[1731063549776,0.7627,2927.2,2925.9,0.06833393]
[1731063549978,0.7627,2927.2,2925.8,0.06834388]
[1731063550184,0.7627,2927.2,2925.6,0.35468085]
[1731063550493,0.7546,2927.0,2925.6,0.35468085]
[1731063550699,0.7546,2927.0,2925.7,0.06833837]
[1731063550700,3.8248,2926.9,2925.7,0.06833837]
[1731063550850,0.8248,2926.8,2925.0,0.39523249]
[1731063551056,0.8248,2926.8,2925.3,0.35475183]
[1731063551789,0.8248,2926.8,2925.4,0.06834822]
[1731063551991,0.8248,2926.7,2925.5,0.55]
[1731063553166,0.8248,2926.7,2925.4,0.55]
[1731063553591,0.8248,2926.7,2925.6,0.55]
[1731063553774,0.8248,2926.7,2925.7,0.06834941]
[1731063554105,0.8248,2926.7,2925.8,0.55]
[1731063554476,0.8248,2926.7,2925.3,0.35475183]
[1731063554780,0.8248,2926.6,2925.4,0.55]
[1731063554982,0.8248,2926.6,2925.5,0.06834949]
[1731063555213,0.8248,2926.6,2925.3,0.35475183]
[1731063555383,3.8248,2926.6,2924.5,3.0]
[1731063555573,3.8248,2926.6,2924.4,2.146869]
[1731063555574,0.8248,2926.5,2924.6,0.39523249]
[1731063555773,0.8248,2926.3,2924.6,4.02123435]
[1731063556003,0.8248,2926.3,2924.7,0.39523249]
[1731063556874,0.8248,2926.3,2924.8,0.06836143]
[1731063557189,0.8248,2926.3,2924.9,0.39523249]
[1731063557383,0.8248,2926.3,2924.7,3.0]
[1731063557706,0.7514,2926.1,2924.8,0.66260019]
[1731063557881,0.7514,2926.1,2924.9,0.55]
[1731063558406,0.7514,2926.1,2924.6,0.35474521]
[1731063558407,0.7514,2926.1,2924.7,0.55]
[1731063559572,3.27125665,2926.1,2924.7,0.55]
[1731063559885,0.8155,2926.0,2924.7,0.55]
[1731063560064,0.7649,2925.9,2924.7,0.55]
[1731063564484,0.7649,2925.9,2924.6,0.35474521]
[1731063564796,0.7649,2925.9,2924.0,3.27125665]
[1731063564990,0.7649,2925.9,2924.0,3.62578589]
[1731063565222,3.0,2926.0,2924.0,3.62578589]
[1731063565223,0.7795,2925.7,2924.1,0.43780859]
[1731063565696,0.7795,2925.7,2924.2,3.27125665]
[1731063565896,0.7795,2925.7,2924.3,0.55]
[1731063566634,0.7795,2925.7,2924.3,3.55]
[1731063566924,3.27125665,2925.5,2924.1,0.80771358]
[1731063567079,0.7552,2925.3,2924.2,0.41622428]
[1731063567277,0.7552,2925.3,2923.7,1.367441]
[1731063567479,0.7552,2925.3,2923.6,4.40988803]
[1731063567733,0.01,2925.0,2923.6,1.72193738]
[1731063568022,3.32712567,2925.4,2923.7,0.06840054]
[1731063568023,0.7552,2924.2,2923.7,0.06840054]
[1731063568234,0.7552,2924.2,2923.1,2.151962]
[1731063568411,0.7552,2924.2,2923.3,0.35446657]
[1731063568941,0.7552,2924.2,2922.5,0.7842]
[1731063569241,0.7552,2924.2,2923.0,0.3544574]
[1731063569395,0.7552,2924.2,2922.8,1.36789]
[1731063569599,0.7552,2924.2,2922.9,0.46391467]
[1731063569942,0.7552,2924.2,2922.9,0.53231783]
[1731063570130,0.7552,2924.2,2922.9,0.06840316]
[1731063570311,0.7552,2924.2,2922.8,0.35447289]
[1731063571337,0.7552,2924.2,2922.9,0.06841441]
[1731063572438,0.7552,2924.2,2922.9,0.55]
[1731063573134,0.7548,2923.9,2922.9,0.55]
[1731063573344,0.7548,2923.7,2922.9,0.55]
[1731063574041,0.7548,2923.7,2922.4,0.35441502]
[1731063574247,0.7548,2923.7,2922.5,0.06841449]
[1731063574465,0.7622,2923.6,2922.4,0.35441502]
[1731063574742,3.28125665,2923.7,2921.6,1.5045499]
[1731063574743,0.7946,2923.3,2921.6,1.5045499]
[1731063575050,0.7946,2923.3,2921.7,0.3540431]
[1731063575205,0.7506,2923.2,2921.8,0.06843255]
[1731063576449,0.7506,2923.2,2921.9,0.06843668]
[1731063577000,0.7802,2923.0,2921.6,0.1361289]
[1731063577337,3.28125665,2923.1,2921.6,0.1361289]
[1731063577338,0.7802,2922.7,2921.6,0.1361289]
[1731063577949,0.7613,2922.6,2921.6,0.1361289]
[1731063578106,0.7613,2922.4,2921.6,0.1361289]
[1731063581873,0.7613,2922.4,2921.7,0.55]
[1731063582036,0.7613,2922.4,2921.9,0.55]
[1731063582670,0.7613,2922.4,2922.0,0.06844341]
[1731063582866,0.7613,2922.4,2922.1,0.55]
[1731063586075,0.7948,2922.7,2922.0,1.3136]
[1731063586273,0.7948,2922.7,2922.2,0.55]
[1731063586459,0.7948,2924.1,2922.4,0.55]
[1731063586748,0.7948,2924.1,2922.6,0.55]
[1731063586950,0.7948,2924.1,2922.8,0.55]
[1731063587181,0.7948,2924.1,2923.0,0.55]
[1731063587378,0.7695,2923.9,2923.0,0.55]
[1731063588897,0.7695,2923.9,2923.2,0.55]
[1731063589404,0.7695,2923.9,2923.1,0.55]
[1731063591219,0.7695,2923.9,2923.0,0.55]
[1731063595201,0.7695,2923.9,2923.2,0.55]
[1731063595540,0.7695,2923.9,2923.4,0.55]
[1731063600117,0.79927,2924.6,2923.6,0.55]
[1731063600845,0.79927,2924.6,2923.4,0.0683924]
[1731063601147,0.79927,2924.6,2923.2,0.55]
[1731063601353,0.79927,2924.6,2923.4,0.55]
[1731063601705,3.0,2924.7,2923.2,0.55]
[1731063601706,0.379927,2924.5,2923.2,0.55]
[1731063602157,3.0,2925.0,2923.2,0.55]
[1731063602791,3.01,2925.0,2923.2,0.55]
[1731063603000,3.0,2924.7,2923.2,0.55]
[1731063603292,3.0,2924.7,2923.4,0.55]
[1731063603293,0.8113,2924.6,2923.4,0.55]
[1731063603509,0.8113,2924.4,2923.2,0.55]
[1731063603860,0.8113,2924.4,2923.1,0.55]
[1731063604761,0.8113,2924.4,2923.2,0.06840203]
[1731063604986,0.8113,2924.4,2923.3,0.55]
[1731063605186,0.8113,2924.4,2923.4,0.06840198]
[1731063605401,0.8113,2924.4,2923.5,0.55]
[1731063605567,0.8113,2924.4,2923.6,0.06840201]
[1731063605767,0.8113,2924.4,2923.5,0.55]
[1731063605983,0.8113,2924.4,2923.7,0.55]
[1731063606597,0.8113,2924.4,2922.9,3.55]
[1731063607108,0.8113,2924.4,2923.1,0.55]
[1731063607292,0.8113,2924.4,2923.2,0.0684023]
[1731063607471,0.8113,2924.4,2922.9,3.55]
[1731063607673,0.8113,2924.4,2923.1,0.55]
[1731063608407,0.8113,2924.4,2923.1,3.82125665]
[1731063608596,0.8113,2924.4,2923.1,3.27125665]
[1731063608795,0.8113,2924.4,2923.0,0.76516566]
[1731063608993,0.8113,2924.4,2923.1,0.06840538]
[1731063609335,0.8113,2924.4,2923.4,4.07985665]
[1731063609542,0.8113,2924.4,2923.5,0.40798567]
[1731063610093,0.8113,2924.4,2923.6,0.55]
[1731063611106,0.8113,2924.4,2923.7,0.06839654]
[1731063612488,0.8113,2924.4,2923.8,0.55]
[1731063612729,0.8113,2924.4,2924.0,0.55]
[1731063613022,0.8113,2924.4,2923.8,0.55]
[1731063613395,0.8113,2924.4,2923.6,0.55]
[1731063613594,0.8113,2924.4,2923.8,0.55]
[1731063614211,0.8113,2924.4,2923.9,0.06839475]
[1731063614413,0.8113,2924.4,2923.8,0.55]
[1731063614675,0.8113,2924.4,2923.7,0.355]
[1731063614799,0.8113,2924.4,2923.3,0.06839687]
[1731063615002,0.8113,2924.4,2923.2,3.0]
[1731063615895,0.8113,2924.4,2923.3,0.55]
[1731063616145,0.8113,2924.4,2923.5,0.55]
[1731063616295,0.8113,2924.4,2923.7,0.55]
[1731063616606,0.8113,2924.4,2923.8,0.06839739]
[1731063616807,0.8113,2924.4,2923.5,0.55]
[1731063617025,0.8113,2924.4,2923.7,0.55]
[1731063617908,0.8113,2924.4,2923.5,0.55]
[1731063618297,0.8113,2924.4,2923.7,0.55]
[1731063618502,0.8113,2924.4,2923.8,0.06839428]
[1731063619045,0.8113,2924.4,2923.5,0.55]
[1731063619197,0.8113,2924.4,2923.6,0.355]
[1731063619543,0.8113,2924.4,2923.7,0.55]
[1731063620829,0.8113,2924.4,2923.9,0.55]
[1731063621271,0.8113,2924.4,2924.0,0.06838795]
[1731063621429,0.8113,2924.4,2923.7,0.55]
[1731063621633,0.8113,2924.4,2923.9,0.55]
[1731063622976,0.8113,2924.4,2924.0,0.06838805]
[1731063623185,0.8113,2924.4,2924.1,0.55]
[1731063623674,0.8113,2924.4,2923.9,0.55]
[1731063624037,0.8113,2924.4,2924.1,0.55]
[1731063624435,0.8113,2924.4,2923.9,0.55]
[1731063626165,0.8113,2924.4,2924.1,0.55]
[1731063626376,0.8113,2924.4,2924.2,0.06838781]
[1731063626955,0.8113,2925.4,2924.3,0.55]
[1731063627168,0.8113,2925.4,2924.5,0.55]
[1731063627478,0.8113,2925.4,2924.6,0.06837628]
[1731063627856,0.8113,2925.4,2924.5,0.55]
[1731063628745,0.8113,2925.4,2924.6,0.0683763]
[1731063629145,0.8113,2925.4,2924.6,0.8532763]
[1731063629556,0.8113,2925.4,2924.7,0.4674533]
[1731063629851,0.8113,2925.4,2924.9,0.55]
[1731063630067,0.7656,2926.5,2925.1,3.82125665]
[1731063630349,0.7656,2926.5,2925.1,0.55]
[1731063630551,0.7656,2926.4,2924.7,0.4674533]
[1731063630763,0.7656,2926.1,2924.3,3.0]
[1731063630970,0.7756,2926.1,2924.3,0.55]
[1731063631174,0.8033,2925.9,2924.3,0.55]
[1731063631669,0.8033,2925.9,2924.5,0.55]
[1731063632152,0.8033,2925.9,2924.4,0.55]
[1731063632355,0.7688,2925.7,2924.5,0.38212567]
[1731063632545,0.7688,2925.7,2924.4,0.61838107]
[1731063632944,0.7688,2925.7,2924.3,0.61838108]
[1731063633282,0.7688,2925.7,2924.5,0.55]
[1731063633945,0.7688,2925.7,2924.4,0.55]
[1731063634171,0.7688,2925.7,2924.3,0.55]
[1731063634703,0.7662,2925.5,2924.5,0.55]
[1731063635355,0.7662,2925.5,2924.1,3.0]
[1731063635768,0.7662,2925.5,2924.2,0.06838367]
[1731063636182,0.7662,2925.5,2924.1,3.0]
[1731063636183,0.7662,2925.5,2924.3,4.03435665]
[1731063636889,0.7662,2925.5,2924.4,0.55]
[1731063637185,0.7662,2925.5,2924.6,0.55]
[1731063637499,0.7662,2925.5,2924.4,0.55]
[1731063638765,0.7662,2925.5,2924.2,0.55]
[1731063639571,0.7662,2925.5,2924.0,0.55]
[1731063639765,0.7662,2925.5,2924.2,0.55]
[1731063641585,0.7662,2925.5,2923.4,0.7761]
[1731063641586,3.0,2925.2,2923.4,0.7761]
[1731063641789,0.7716,2925.1,2923.4,0.7761]
[1731063642100,0.7716,2924.9,2923.4,0.7761]
[1731063642264,0.7716,2924.7,2923.4,0.7761]
[1731063642784,0.7716,2924.7,2923.4,4.04735665]
[1731063643100,0.7716,2924.7,2923.6,0.55]
[1731063643294,0.7716,2924.7,2923.8,0.55]
[1731063643520,0.7716,2924.7,2923.9,0.06839542]
[1731063643668,0.7716,2924.7,2924.0,0.55]
[1731063643868,0.7716,2924.7,2923.8,0.55]
[1731063644095,0.7716,2924.7,2924.0,0.55]
[1731063644699,0.7716,2924.7,2924.1,0.06838892]
[1731063645386,0.7716,2924.7,2924.2,0.55]
[1731063645578,0.7716,2924.7,2924.0,0.55]
[1731063647720,0.7716,2924.7,2924.1,0.06838456]
[1731063647863,0.7716,2924.7,2924.2,0.55]
[1731063648210,0.7716,2924.7,2924.4,0.55]
[1731063648504,0.7716,2924.7,2923.9,0.38212567]
[1731063648505,0.7716,2924.7,2924.1,0.55]
[1731063648688,0.8072,2925.0,2924.3,0.55]
[1731063649000,0.8072,2925.0,2924.5,0.55]
[1731063650799,0.8072,2925.0,2924.3,0.55]
[1731063651385,0.8072,2925.0,2924.3,3.82125665]
[1731063651580,0.8072,2925.0,2924.5,0.55]
[1731063651775,0.8072,2925.0,2924.4,0.5718193]
[1731063651776,0.8072,2925.0,2924.7,0.55]
[1731063652111,0.8072,2925.0,2924.5,0.55]
[1731063652316,0.8072,2925.0,2924.3,0.55]
[1731063652477,0.2572,2925.0,2924.3,0.55]
[1731063652819,1.41525989,2925.4,2924.3,0.55]
[1731063652978,0.62017468,2925.3,2924.3,0.55]
[1731063653179,2.03543457,2925.3,2923.7,0.7804]
[1731063653818,5.03543457,2925.3,2923.6,3.0]
[1731063654295,4.41525989,2925.2,2923.6,3.0]
[1731063654608,5.03543457,2925.3,2923.7,0.55]
[1731063654810,0.68219214,2925.2,2923.9,0.55]
[1731063655194,5.09745203,2925.2,2923.9,0.55]
[1731063655383,0.2613,2925.1,2923.9,0.55]
[1731063656300,1.41525989,2925.1,2923.9,0.55]
[1731063656478,0.2613,2925.0,2923.9,0.55]
[1731063657613,0.2613,2925.0,2924.0,0.06838827]
[1731063657789,0.2613,2925.0,2924.1,0.55]
[1731063658183,0.2613,2925.0,2924.3,0.55]
[1731063658783,0.2613,2925.0,2924.1,0.55]
[1731063659029,0.2613,2925.0,2924.3,0.55]
[1731063659392,0.2613,2925.0,2924.5,0.55]
[1731063659587,0.2613,2925.4,2924.7,1.351]
[1731063660095,0.2613,2925.4,2924.7,0.55]
[1731063660288,0.2613,2925.4,2924.6,0.55]
[1731063660509,0.2613,2925.4,2924.7,0.5034732]
[1731063660708,0.2613,2925.4,2924.8,0.55]
[1731063661108,0.2613,2925.4,2924.9,0.06837321]
[1731063662605,0.2613,2925.7,2925.1,0.8024]
[1731063662810,0.2613,2926.2,2925.6,3.27125665]
[1731063663015,0.2613,2926.2,2925.7,0.61834967]
[1731063663509,0.2613,2926.2,2925.7,0.55]
[1731063664317,0.2613,2926.2,2925.2,0.8024]
[1731063664520,0.2613,2926.2,2925.3,0.55]
[1731063665115,0.2613,2926.2,2925.2,0.55]
[1731063665318,0.2613,2926.2,2925.3,0.355]
[1731063665516,0.2613,2926.2,2925.0,0.55]
[1731063665916,4.68651654,2926.2,2924.7,0.4351]
[1731063666228,4.68651654,2926.2,2924.4,3.7875]
[1731063666229,4.41525989,2926.0,2924.5,0.06837107]
[1731063666441,0.2613,2925.8,2924.1,0.7875]
[1731063666743,0.2613,2925.8,2923.8,0.7875]
[1731063666744,0.2613,2925.4,2923.8,0.7875]
[1731063667033,0.2613,2925.3,2923.8,0.7875]
[1731063667247,0.2613,2925.1,2923.8,0.7875]
[1731063668551,0.2613,2925.1,2923.9,0.55]
[1731063670731,0.2613,2925.1,2924.0,0.06838953]
[1731063670922,0.2613,2925.1,2924.1,0.55]
[1731063671324,0.2613,2925.1,2923.9,0.55]
[1731063671829,0.2613,2925.1,2924.1,0.55]
[1731063673329,0.2613,2925.1,2924.1,0.93896462]
[1731063674241,0.2613,2925.1,2924.3,1.3242]
[1731063674446,0.2613,2925.1,2924.5,0.55]
[1731063674645,0.2613,2925.7,2924.7,0.55]
[1731063674813,0.2613,2925.7,2924.9,0.55]
[1731063676055,0.2613,2925.7,2924.9,1.3024]
[1731063678059,0.2613,2925.7,2925.1,0.55]
[1731063678214,0.2613,2925.7,2924.9,1.3024]
[1731063678412,0.2613,2925.7,2925.2,0.55]
[1731063678944,0.2613,2926.1,2925.4,0.55]
[1731063679257,0.2613,2926.5,2925.6,0.55]
[1731063679410,0.2613,2926.5,2925.8,0.55]